fUST/lending_fUST_20240807
["ID","MTS","AMOUNT","RATE_DAILY","PERIOD"]
[334384914,1723017054468,-500.0,0.00032876,14]
[334384915,1723017054477,-500.0,0.00032876,14]
[334384916,1723017054490,-501.01373827,0.00032876,14]
[334384917,1723017054499,-500.97512813,0.00032876,14]
[334384918,1723017054509,-500.0,0.00032876,14]
[334384919,1723017054518,-1892.36,0.00032876,14]
[334384920,1723017054527,-504.81546754,0.00032876,14]
[334384921,1723017054536,-500.80310453,0.00032876,14]
[334384922,1723017054546,-1801.41,0.00032876,14]
[334384923,1723017054555,-500.72339024,0.00032876,14]
[334384924,1723017054563,-177.42085047,0.00032876,14]
[334384925,1723017054572,-501.28345329,0.00032876,14]
[334384926,1723017054582,-500.0,0.00032876,14]
[334384927,1723017054591,-501.97172639,0.00032876,14]
[334384928,1723017054599,-500.32989976,0.00032876,14]
[334384929,1723017054609,-500.0,0.00032876,14]
[334384930,1723017054618,-500.0,0.00032876,14]
[334384931,1723017054627,-527.71,0.00032876,14]
[334384932,1723017054637,-723.31,0.00032876,14]
[334384933,1723017054646,-500.63652447,0.00032876,14]
[334384934,1723017054655,-501.13304307,0.00032876,14]
[334384935,1723017054665,-500.0,0.00032876,14]
[334384936,1723017054675,-501.17731357,0.00032876,14]
[334384937,1723017054684,-3544.95,0.00032876,14]
[334384938,1723017054693,-501.16054616,0.00032876,14]
[334384939,1723017054702,-706.19,0.00032876,14]
[334384940,1723017054711,-500.0,0.00032876,14]
[334384941,1723017054720,-1147.59,0.00032876,14]
[334384942,1723017054729,-500.0,0.00032876,14]
[334384943,1723017054740,-501.06054938,0.00032876,14]
[334384944,1723017054749,-500.0,0.00032876,14]
[334384945,1723017054758,-417.36501142,0.00032876,14]
[334384946,1723017054767,-500.0,0.00032876,14]
[334384947,1723017054777,-500.0,0.00032876,14]
[334384948,1723017054785,-500.0,0.00032876,14]
[334384949,1723017054794,-502.02331106,0.00032876,14]
[334384950,1723017054804,-545.98,0.00032876,14]
[334384951,1723017054813,-381.08306787,0.00032876,14]
[334384952,1723017054822,-2511.51,0.00032876,14]
[334384953,1723017054832,-501.63373428,0.00032876,14]
[334384954,1723017054841,-500.0,0.00032876,14]
[334384955,1723017054850,-566.65,0.00032876,14]
[334384956,1723017054859,-880.79,0.00032876,14]
[334384957,1723017054868,-501.54036098,0.00032876,14]
[334384958,1723017054878,-12378.95,0.00032876,14]
[334384959,1723017054887,-500.42795888,0.00032876,14]
[334384960,1723017054897,-520.77,0.00032876,14]
[334384961,1723017054906,-459.13596036,0.00032876,14]
[334384962,1723017054915,-500.0,0.00032876,14]
[334384963,1723017054924,-500.2827213,0.00032876,14]
[334384964,1723017054933,-2468.89,0.00032876,14]
[334384965,1723017054943,-510.46,0.00032876,14]
[334384966,1723017054952,-19895.03,0.00032876,14]
[334384967,1723017054961,-501.02,0.00032876,14]
[334384968,1723017054971,-501.25070796,0.00032876,14]
[334384969,1723017054984,-22212.2,0.00032876,14]
[334384970,1723017054993,-500.0,0.00032876,14]
[334384971,1723017055003,-847.98,0.00032876,14]
[334384972,1723017055012,-500.0,0.00032876,14]
[334384973,1723017055021,-2729.96,0.00032876,14]
[334384974,1723017055031,-500.0,0.00032876,14]
[334384975,1723017055044,-510.38286826,0.00032876,14]
[334384976,1723017055064,-2551.02,0.00032876,14]
[334384977,1723017055074,-500.0,0.00032876,14]
[334384978,1723017055085,-500.0,0.00032876,14]
[334384979,1723017055094,-1436.59,0.00032876,14]
[334384980,1723017055104,-500.0,0.00032876,14]
[334384981,1723017055115,-2053.33,0.00032876,14]
[334384982,1723017055126,-577.37,0.00032876,14]
[334384983,1723017055135,-500.0,0.00032876,14]
[334384984,1723017055145,-523.21,0.00032876,14]
[334384985,1723017055154,-4362.76,0.00032876,14]
[334384986,1723017055164,-512.17,0.00032876,14]
[334384987,1723017055173,-500.49628931,0.00032876,14]
[334384988,1723017055183,-500.0,0.00032876,14]
[334384989,1723017055192,-350.21556734,0.00032876,14]
[334384990,1723017055202,-640.43,0.00032876,14]
[334384991,1723017055211,-3132.76,0.00032876,14]
[334384992,1723017055221,-1661.32,0.00032876,14]
[334384993,1723017055234,-500.0,0.00032876,14]
[334384994,1723017055246,-8842.67,0.00032876,14]
[334384995,1723017055256,-500.0,0.00032876,14]
[334384996,1723017055266,-2475.57,0.00032876,14]
[334384997,1723017055277,-663.29,0.00032876,14]
[334384998,1723017055287,-500.0,0.00032876,14]
[334384999,1723017055297,-500.0,0.00032876,14]
[334385000,1723017055307,-500.0,0.00032876,14]
[334385001,1723017055317,-683.3,0.00032876,14]
[334385002,1723017055326,-501.41645297,0.00032876,14]
[334385003,1723017055336,-500.45592668,0.00032876,14]
[334385004,1723017055346,-500.0,0.00032876,14]
[334385005,1723017055356,-500.0,0.00032876,14]
[334385006,1723017055367,-500.0,0.00032876,14]
[334385007,1723017055378,-500.54070269,0.00032876,14]
[334385008,1723017055389,-1462.41,0.00032876,14]
[334385009,1723017055401,-3423.38,0.00032876,14]
[334385010,1723017055413,-1205.01,0.00032876,14]
[334385011,1723017055425,-500.0,0.00032876,14]
[334385012,1723017055436,-500.78420234,0.00032876,14]
[334385013,1723017055448,-11763.31,0.00032876,14]
[334385014,1723017055458,-500.0,0.00032876,14]
[334385015,1723017055468,-500.25730008,0.00032876,14]
[334385016,1723017055478,-1307.51,0.00032876,14]
[334385017,1723017055490,-500.0,0.00032876,14]
[334385018,1723017055501,-1042.15,0.00032876,14]
[334385019,1723017055511,-500.0,0.00032876,14]
[334385020,1723017055521,-500.0,0.00032876,14]
[334385021,1723017055530,-542.34,0.00032876,14]
[334385022,1723017055540,-500.0,0.00032876,14]
[334385023,1723017055550,-500.0,0.00032876,14]
[334385024,1723017055560,-1890.22,0.00032876,14]
[334385025,1723017055570,-500.0,0.00032876,14]
[334385026,1723017055579,-2529.44,0.00032876,14]
[334385027,1723017055589,-500.0,0.00032876,14]
[334385028,1723017055598,-500.0,0.00032876,14]
[334385029,1723017055608,-1418.76,0.00032876,14]
[334385030,1723017055619,-533.52,0.00032876,14]
[334385031,1723017055628,-500.0,0.00032876,14]
[334385032,1723017055638,-1694.61,0.00032876,14]
[334385033,1723017055650,-500.0,0.00032876,14]
[334385034,1723017055660,-718.17,0.00032876,14]
[334385035,1723017055670,-1687.85,0.00032876,14]
[334385036,1723017055681,-500.0,0.00032876,14]
[334385037,1723017055692,-10243.51,0.00032876,14]
[334385038,1723017055703,-500.0,0.00032876,14]
[334385039,1723017055714,-1534.01,0.00032876,14]
[334385040,1723017055723,-500.0,0.00032876,14]
[334385041,1723017055737,-500.0,0.00032876,14]
[334385042,1723017055753,-457.75829794,0.00032876,14]
[334385043,1723017055763,-966.67,0.00032876,14]
[334385044,1723017055773,-500.0,0.00032876,14]
[334385045,1723017055783,-2676.77,0.00032876,14]
[334385046,1723017055793,-749.67,0.00032876,14]
[334385047,1723017055802,-500.0,0.00032876,14]
[334385048,1723017055812,-500.0,0.00032876,14]
[334385049,1723017055823,-11103.36,0.00032876,14]
[334385050,1723017055834,-11103.36,0.00032876,14]
[334385051,1723017055844,-1864.55,0.00032876,14]
[334385052,1723017055855,-11103.36,0.00032876,14]
[334385053,1723017055866,-500.0,0.00032876,14]
[334385054,1723017055876,-416.28673535,0.00032876,14]
[334385055,1723017055886,-11103.36,0.00032876,14]
[334385056,1723017055896,-11103.36,0.00032876,14]
[334385057,1723017055908,-11103.36,0.00032876,14]
[334385058,1723017055918,-528.42,0.00032876,14]
[334385059,1723017055927,-11103.36,0.00032876,14]
[334385060,1723017055937,-11103.36,0.00032876,14]
[334385061,1723017055948,-11103.36,0.00032876,14]
[334385062,1723017055959,-11103.36,0.00032876,14]
[334385063,1723017055969,-500.0,0.00032876,14]
[334385064,1723017055979,-11103.36,0.00032876,14]
[334385065,1723017055997,-11103.36,0.00032876,14]
[334385066,1723017056006,-11103.36,0.00032876,14]
[334385067,1723017056016,-11103.36,0.00032876,14]
[334385068,1723017056025,-11103.36,0.00032876,14]
[334385069,1723017056038,-1168.48,0.00032876,14]
[334385070,1723017056048,-11103.36,0.00032876,14]
[334385071,1723017056058,-11103.36,0.00032876,14]
[334385072,1723017056067,-503.56181283,0.00032876,14]
[334385073,1723017056077,-11103.36,0.00032876,14]
[334385074,1723017056087,-3848.42,0.00032876,14]
[334385075,1723017056098,-11103.36,0.00032876,14]
[334385076,1723017056109,-11103.36,0.00032876,14]
[334385077,1723017056121,-11103.36,0.00032876,14]
[334385078,1723017056132,-11103.36,0.00032876,14]
[334385079,1723017056143,-11103.36,0.00032876,14]
[334385080,1723017056154,-11103.59767706,0.00032876,14]
[334385081,1723017056163,-2456.53,0.00032876,14]
[334385082,1723017056173,-500.0,0.00032876,14]
[334385083,1723017056183,-1678.36,0.00032876,14]
[334385084,1723017056192,-500.0,0.00032876,14]
[334385085,1723017056202,-1102.67,0.00032876,14]
[334385086,1723017056213,-500.0,0.00032876,14]
[334385087,1723017056224,-500.0,0.00032876,14]
[334385088,1723017056238,-1256.68,0.00032876,14]
[334385089,1723017056250,-500.0,0.00032876,14]
[334385090,1723017056259,-500.0,0.00032876,14]
[334385091,1723017056269,-540.23,0.00032876,14]
[334385092,1723017056279,-500.0,0.00032876,14]
[334385093,1723017056289,-500.0,0.00032876,14]
[334385094,1723017056299,-3433.9,0.00032876,14]
[334385095,1723017056309,-500.0,0.00032876,14]
[334385096,1723017056319,-392.59916377,0.00032876,14]
[334385097,1723017056329,-573.46310357,0.00032876,14]
[334385098,1723017056338,-500.0,0.00032876,14]
[334385099,1723017056348,-500.0,0.00032876,14]
[334385100,1723017056357,-500.0,0.00032876,14]
[334385101,1723017056367,-2694.68,0.00032876,14]
[334385102,1723017056376,-511.35170095,0.00032876,14]
[334385103,1723017056386,-500.0,0.00032876,14]
[334385104,1723017056395,-1757.37,0.00032876,14]
[334385105,1723017056405,-501.18978039,0.00032876,14]
[334385106,1723017056415,-500.0,0.00032876,14]
[334385107,1723017056426,-500.0,0.00032876,14]
[334385108,1723017056437,-500.0,0.00032876,14]
[334385109,1723017056450,-2513.33,0.00032876,14]
[334385110,1723017056460,-500.58368261,0.00032876,14]
[334385111,1723017056470,-1219.63,0.00032876,14]
[334385112,1723017056481,-502.25683069,0.00032876,14]
[334385113,1723017056493,-207.0130742,0.00032877,2]
[334385114,1723017056502,-3000.0,0.0003288,13]
[334385115,1723017056512,-3000.0,0.0003289,13]
[334385116,1723017056522,-237.25,0.000329,14]
[334385117,1723017056532,-4859.05,0.000329,13]
[334385118,1723017056543,-150.0,0.00032979,2]
[334385119,1723017056553,-270.0,0.00033,2]
[334385120,1723017056564,-270.0,0.00033,2]
[334385121,1723017056575,-160.0,0.00033149,10]
[334385122,1723017056586,-160.0,0.00033149,10]
[334385123,1723017056597,-500.69732933,0.0003315,2]
[334385124,1723017056607,-497.17686921,0.0003315,14]
[334385125,1723017056617,-500.81594782,0.0003315,14]
[334385126,1723017056629,-595.41,0.0003315,14]
[334385127,1723017056639,-500.0,0.0003315,14]
[334385128,1723017056649,-500.0,0.0003315,14]
[334385129,1723017056659,-500.0,0.0003315,14]
[334385130,1723017056668,-500.0,0.0003315,14]
[334385131,1723017056678,-500.0,0.0003315,14]
[334385132,1723017056688,-500.0,0.0003315,14]
[334385133,1723017056698,-500.0,0.0003315,14]
[334385134,1723017056708,-500.0,0.0003315,14]
[334385135,1723017056719,-704.01,0.0003315,14]
[334385136,1723017056731,-500.0,0.0003315,14]
[334385137,1723017056744,-500.0,0.0003315,14]
[334385138,1723017056754,-500.0,0.0003315,14]
[334385139,1723017056764,-500.0,0.0003315,14]
[334385140,1723017056773,-500.0,0.0003315,14]
[334385141,1723017056782,-799.8,0.0003315,14]
[334385142,1723017056792,-500.0,0.0003315,14]
[334385143,1723017056803,-500.0,0.0003315,14]
[334385144,1723017056815,-500.0,0.0003315,14]
[334385145,1723017056825,-1671.33,0.0003315,14]
[334385146,1723017056835,-500.0,0.0003315,14]
[334385147,1723017056844,-500.0,0.0003315,14]
[334385148,1723017056855,-566.91,0.0003315,14]
[334385149,1723017056864,-500.0,0.0003315,14]
[334385150,1723017056874,-500.0,0.0003315,14]
[334385151,1723017056884,-500.0,0.0003315,14]
[334385152,1723017056895,-1266.37,0.0003315,14]
[334385153,1723017056906,-500.0,0.0003315,14]
[334385154,1723017056916,-500.0,0.0003315,14]
[334385155,1723017056926,-500.0,0.0003315,14]
[334385156,1723017056936,-500.0,0.0003315,14]
[334385157,1723017056946,-500.0,0.0003315,14]
[334385158,1723017056956,-500.0,0.0003315,14]
[334385159,1723017056966,-653.99,0.0003315,14]
[334385160,1723017056975,-500.35272699,0.0003315,14]
[334385161,1723017056987,-2797.63,0.0003315,14]
[334385162,1723017056997,-500.0,0.0003315,14]
[334385163,1723017057006,-500.0,0.0003315,14]
[334385164,1723017057016,-500.0,0.0003315,14]
[334385165,1723017057025,-500.0,0.0003315,14]
[334385166,1723017057038,-500.0,0.0003315,14]
[334385167,1723017057050,-717.12,0.0003315,14]
[334385168,1723017057059,-500.0,0.0003315,14]
[334385169,1723017057069,-500.0,0.0003315,14]
[334385170,1723017057080,-500.0,0.0003315,14]
[334385171,1723017057091,-500.0,0.0003315,14]
[334385172,1723017057101,-500.0,0.0003315,14]
[334385173,1723017057111,-500.0,0.0003315,14]
[334385174,1723017057122,-500.0,0.0003315,14]
[334385175,1723017057134,-500.0,0.0003315,14]
[334385176,1723017057144,-500.0,0.0003315,14]
[334385177,1723017057155,-500.0,0.0003315,14]
[334385178,1723017057165,-500.0,0.0003315,14]
[334385179,1723017057175,-2641.92,0.0003315,14]
[334385180,1723017057187,-500.0,0.0003315,14]
[334385181,1723017057198,-194.92989343,0.0003315,14]
[334385182,1723017057210,-500.0,0.0003315,14]
[334385183,1723017057220,-577.54163865,0.0003315,14]
[334385184,1723017057230,-1569.84,0.0003315,14]
[334385185,1723017057243,-500.0,0.0003315,14]
[334385186,1723017057252,-522.43271615,0.0003315,14]
[334385187,1723017057262,-179.15255214,0.0003315,14]
[334385188,1723017057272,-793.25,0.0003315,14]
[334385189,1723017057282,-500.0,0.0003315,14]
[334385190,1723017057292,-500.0,0.0003315,14]
[334385191,1723017057306,-500.0,0.0003315,14]
[334385192,1723017057316,-420.38900599,0.0003315,14]
[334385193,1723017057325,-500.0,0.0003315,14]
[334385194,1723017057335,-500.0,0.0003315,14]
[334385195,1723017057345,-500.0,0.0003315,14]
[334385196,1723017057355,-500.0,0.0003315,14]
[334385197,1723017057364,-1145.61,0.0003315,14]
[334385198,1723017057374,-500.0,0.0003315,14]
[334385199,1723017057384,-836.05,0.0003315,14]
[334385200,1723017057394,-509.5262953,0.0003315,14]
[334385201,1723017057572,-500.0,0.0003315,14]
[334385202,1723017057583,-500.0,0.0003315,14]
[334385203,1723017057594,-372.09716578,0.0003315,14]
[334385204,1723017057604,-636.15,0.0003315,14]
[334385205,1723017057616,-500.0,0.0003315,14]
[334385206,1723017057626,-500.0,0.0003315,14]
[334385207,1723017057636,-514.5,0.0003315,14]
[334385208,1723017057646,-500.0,0.0003315,14]
[334385209,1723017057656,-1757.88,0.0003315,14]
[334385210,1723017057665,-500.0,0.0003315,14]
[334385211,1723017057676,-500.0,0.0003315,14]
[334385212,1723017057687,-500.0,0.0003315,14]
[334385213,1723017057697,-1719.05,0.0003315,14]
[334385214,1723017057707,-604.84,0.0003315,14]
[334385215,1723017057716,-1524.55,0.0003315,14]
[334385216,1723017057726,-706.23,0.0003315,14]
[334385217,1723017057739,-825.27,0.0003315,14]
[334385218,1723017057748,-1112.57,0.0003315,14]
[334385219,1723017057758,-500.0,0.0003315,14]
[334385220,1723017057769,-500.0,0.0003315,14]
[334385221,1723017057779,-500.0,0.0003315,14]
[334385222,1723017057791,-2209.88,0.0003315,14]
[334385223,1723017057802,-1070.18,0.0003315,14]
[334385224,1723017057813,-663.9,0.0003315,14]
[334385225,1723017057822,-781.1,0.0003315,14]
[334385226,1723017057832,-534.62,0.0003315,14]
[334385227,1723017057842,-500.0,0.0003315,14]
[334385228,1723017057852,-500.0,0.0003315,14]
[334385229,1723017057861,-500.0,0.0003315,14]
[334385230,1723017057870,-703.63,0.0003315,14]
[334385231,1723017057881,-2208.28,0.0003315,14]
[334385232,1723017057890,-500.0,0.0003315,14]
[334385233,1723017057899,-594.99,0.0003315,14]
[334385234,1723017057912,-500.0,0.0003315,14]
[334385235,1723017057922,-700.92,0.0003315,14]
[334385236,1723017057931,-500.0,0.0003315,14]
[334385237,1723017057941,-500.0,0.0003315,14]
[334385238,1723017057952,-500.0,0.0003315,14]
[334385239,1723017057962,-569.34,0.0003315,14]
[334385240,1723017057971,-500.0,0.0003315,14]
[334385241,1723017057980,-551.77,0.0003315,14]
[334385242,1723017057992,-500.0,0.0003315,14]
[334385243,1723017058003,-500.0,0.0003315,14]
[334385244,1723017058013,-500.0,0.0003315,14]
[334385245,1723017058024,-535.27,0.0003315,14]
[334385246,1723017058036,-503.11,0.0003315,14]
[334385247,1723017058051,-500.0,0.0003315,14]
[334385248,1723017058060,-2462.53,0.0003315,14]
[334385249,1723017058070,-964.16,0.0003315,14]
[334385250,1723017058080,-964.43,0.0003315,14]
[334385251,1723017058091,-500.0,0.0003315,14]
[334385252,1723017058102,-363.17668074,0.0003315,14]
[334385253,1723017058112,-500.0,0.0003315,14]
[334385254,1723017058127,-500.0,0.0003315,14]
[334385255,1723017058138,-500.0,0.0003315,14]
[334385256,1723017058148,-579.24,0.0003315,14]
[334385257,1723017058158,-583.46,0.0003315,14]
[334385258,1723017058168,-500.0,0.0003315,14]
[334385259,1723017058179,-500.0,0.0003315,14]
[334385260,1723017058188,-500.0,0.0003315,14]
[334385261,1723017058199,-500.0,0.0003315,14]
[334385262,1723017058211,-2078.45,0.0003315,14]
[334385263,1723017058221,-626.92,0.0003315,14]
[334385264,1723017058230,-500.0,0.0003315,14]
[334385265,1723017058244,-1734.08,0.0003315,14]
[334385266,1723017058254,-534.65,0.0003315,14]
[334385267,1723017058264,-500.0,0.0003315,14]
[334385268,1723017058275,-370.70293122,0.0003315,14]
[334385269,1723017058285,-2265.42,0.0003315,14]
[334385270,1723017058295,-3497.4,0.0003315,14]
[334385271,1723017058306,-911.24,0.0003315,14]
[334385272,1723017058318,-1007.8,0.0003315,14]
[334385273,1723017058328,-500.0,0.0003315,14]
[334385274,1723017058338,-1705.52,0.0003315,14]
[334385275,1723017058348,-500.0,0.0003315,14]
[334385276,1723017058358,-500.0,0.0003315,14]
[334385277,1723017058368,-527.59,0.0003315,14]
[334385278,1723017058378,-500.0,0.0003315,14]
[334385279,1723017058388,-496.05989774,0.0003315,10]
[334385280,1723017058400,-1252.66,0.0003315,14]
[334385281,1723017058412,-500.0,0.0003315,14]
[334385282,1723017058423,-500.0,0.0003315,14]
[334385283,1723017058434,-500.0,0.0003315,14]
[334385284,1723017058445,-777.11,0.0003315,14]
[334385285,1723017058456,-500.0,0.0003315,14]
[334385286,1723017058467,-1239.88,0.0003315,14]
[334385287,1723017058477,-2999.67,0.0003315,14]
[334385288,1723017058491,-824.74,0.0003315,14]
[334385289,1723017058501,-500.0,0.0003315,14]
[334385290,1723017058511,-1068.74,0.0003315,14]
[334385291,1723017058521,-1213.42,0.0003315,14]
[334385292,1723017058531,-3303.62,0.0003315,14]
[334385293,1723017058541,-1038.39,0.0003315,14]
[334385294,1723017058551,-500.0,0.0003315,14]
[334385295,1723017058562,-774.71,0.0003315,14]
[334385296,1723017058572,-500.0,0.0003315,2]
[334385297,1723017058582,-1398.48,0.0003315,14]
[334385298,1723017058593,-500.0,0.0003315,14]
[334385299,1723017058603,-495.35416642,0.0003315,14]
[334385300,1723017058614,-500.0,0.0003315,14]
[334385301,1723017058624,-500.0,0.0003315,14]
[334385302,1723017058634,-864.67,0.0003315,14]
[334385303,1723017058644,-1216.37,0.0003315,14]
[334385304,1723017058654,-2557.26,0.0003315,14]
[334385305,1723017058664,-500.0,0.0003315,14]
[334385306,1723017058675,-756.19,0.0003315,14]
[334385307,1723017058688,-586.73,0.0003315,14]
[334385308,1723017058699,-500.0,0.0003315,14]
[334385309,1723017058710,-500.0,0.0003315,14]
[334385310,1723017058720,-769.76,0.0003315,14]
[334385311,1723017058730,-500.0,0.0003315,14]
[334385312,1723017058743,-500.0,0.0003315,14]
[334385313,1723017058753,-500.0,0.0003315,14]
[334385314,1723017058763,-500.0,0.0003315,14]
[334385315,1723017058773,-500.0,0.0003315,2]
[334385316,1723017058784,-1109.96,0.0003315,14]
[334385317,1723017058795,-1266.46,0.0003315,14]
[334385318,1723017058808,-1506.67,0.0003315,14]
[334385319,1723017058818,-500.0,0.0003315,14]
[334385320,1723017058828,-500.0,0.0003315,14]
[334385321,1723017058838,-500.0,0.0003315,14]
[334385322,1723017058847,-500.0,0.0003315,14]
[334385323,1723017058857,-1029.81,0.0003315,14]
[334385324,1723017058866,-751.84,0.0003315,14]
[334385325,1723017058877,-688.35,0.0003315,14]
[334385326,1723017058886,-500.0,0.0003315,14]
[334385327,1723017058896,-500.0,0.0003315,14]
[334385328,1723017058905,-626.67,0.0003315,14]
[334385329,1723017058917,-3149.36,0.0003315,14]
[334385330,1723017058930,-500.0,0.0003315,14]
[334385331,1723017058941,-500.0,0.0003315,14]
[334385332,1723017058951,-500.0,0.0003315,14]
[334385333,1723017058960,-655.37,0.0003315,14]
[334385334,1723017058969,-1552.29,0.0003315,14]
[334385335,1723017058979,-2202.83,0.0003315,14]
[334385336,1723017058992,-563.54,0.0003315,14]
[334385337,1723017059001,-2563.27,0.0003315,14]
[334385338,1723017059011,-611.0,0.0003315,14]
[334385339,1723017059020,-500.0,0.0003315,14]
[334385340,1723017059033,-500.0,0.0003315,14]
[334385341,1723017059045,-500.0,0.0003315,14]
[334385342,1723017059055,-500.0,0.0003315,14]
[334385343,1723017059064,-680.22,0.0003315,14]
[334385344,1723017059073,-500.0,0.0003315,14]
[334385345,1723017059083,-500.0,0.0003315,14]
[334385346,1723017059092,-500.0,0.0003315,14]
[334385347,1723017059103,-500.0,0.0003315,14]
[334385348,1723017059112,-500.0,0.0003315,14]
[334385349,1723017059126,-500.0,0.0003315,14]
[334385350,1723017059137,-1506.17,0.0003315,14]
[334385351,1723017059148,-867.44,0.0003315,14]
[334385352,1723017059158,-513.94,0.0003315,14]
[334385353,1723017059167,-787.8,0.0003315,14]
[334385354,1723017059197,-941.02,0.0003315,14]
[334385355,1723017059207,-500.0,0.0003315,14]
[334385356,1723017059218,-500.0,0.0003315,14]
[334385357,1723017059228,-501.04,0.0003315,14]
[334385358,1723017059241,-361.1656613,0.0003315,14]
[334385359,1723017059255,-500.0,0.0003315,14]
[334385360,1723017059264,-500.0,0.0003315,14]
[334385361,1723017059273,-2792.46,0.0003315,14]
[334385362,1723017059283,-500.0,0.0003315,14]
[334385363,1723017059292,-500.0,0.0003315,14]
[334385364,1723017059302,-500.0,0.0003315,14]
[334385365,1723017059312,-424.31336219,0.0003315,14]
[334385366,1723017059321,-615.47,0.0003315,14]
[334385367,1723017059330,-500.0,0.0003315,14]
[334385368,1723017059339,-640.11,0.0003315,14]
[334385369,1723017059348,-2798.72,0.0003315,14]
[334385370,1723017059358,-6928.85,0.0003315,14]
[334385371,1723017059368,-618.63,0.0003315,14]
[334385372,1723017059378,-2138.13,0.0003315,14]
[334385373,1723017059388,-500.0,0.0003315,14]
[334385374,1723017059397,-500.0,0.0003315,14]
[334385375,1723017059407,-500.0,0.0003315,14]
[334385376,1723017059417,-500.0,0.0003315,14]
[334385377,1723017059428,-568.11,0.0003315,14]
[334385378,1723017059437,-500.0,0.0003315,14]
[334385379,1723017059449,-500.0,0.0003315,14]
[334385380,1723017059459,-500.0,0.0003315,14]
[334385381,1723017059469,-540.00326272,0.0003315,14]
[334385382,1723017059478,-601.5,0.0003315,14]
[334385383,1723017059491,-548.44,0.0003315,14]
[334385384,1723017059501,-500.0,0.0003315,14]
[334385385,1723017059510,-500.0,0.0003315,14]
[334385386,1723017059520,-539.18,0.0003315,14]
[334385387,1723017059529,-971.29,0.0003315,14]
[334385388,1723017059540,-2467.7,0.0003315,14]
[334385389,1723017059550,-500.0,0.0003315,14]
[334385390,1723017059559,-1114.81,0.0003315,14]
[334385391,1723017059569,-500.0,0.0003315,14]
[334385392,1723017059578,-929.18,0.0003315,14]
[334385393,1723017059587,-500.0,0.0003315,14]
[334385394,1723017059597,-3577.42,0.0003315,14]
[334385395,1723017059607,-529.05,0.0003315,14]
[334385396,1723017059617,-2660.5,0.0003315,14]
[334385397,1723017059626,-500.0,0.0003315,14]
[334385398,1723017059636,-1220.09,0.0003315,14]
[334385399,1723017059645,-8209.47,0.0003315,14]
[334385400,1723017059655,-500.0,0.0003315,14]
[334385401,1723017059664,-655.83,0.0003315,14]
[334385402,1723017059674,-152.4865267,0.0003315,14]
[334385403,1723017059683,-957.52,0.0003315,14]
[334385404,1723017059693,-504.28,0.0003315,14]
[334385405,1723017059703,-4108.88,0.0003315,14]
[334385406,1723017059712,-892.52,0.0003315,14]
[334385407,1723017059722,-500.0,0.0003315,14]
[334385408,1723017059732,-1703.62,0.0003315,14]
[334385409,1723017059743,-4785.17,0.0003315,14]
[334385410,1723017059753,-500.0,0.0003315,14]
[334385411,1723017059762,-674.3,0.0003315,14]
[334385412,1723017059772,-500.0,0.0003315,14]
[334385413,1723017059781,-500.0,0.0003315,14]